bitfinex-derivatives/quotes_SOLF0:USTF0_20260204
["timestamp","ask_amount","ask_price","bid_price","bid_amount"]
[1770217112944,32.01,93.049,92.88,32.93355285]
[1770217113139,32.01,93.039,92.862,1.87224107]
[1770217113342,32.01,93.037,92.911,74.42959098]
[1770217113541,32.01,93.119,92.971,74.42959098]
[1770217113935,1.87046493,93.116,92.971,74.42959098]
[1770217114137,32.01,93.119,92.971,74.42959098]
[1770217114340,10.19926493,93.151,92.971,74.42959098]
[1770217114549,32.01,93.099,92.971,74.42959098]
[1770217114744,32.01,93.039,92.909,74.41472001]
[1770217114945,32.01,93.037,92.909,74.41472001]
[1770217115141,32.01,93.037,92.91,32.93355285]
[1770217115342,226.58,93.134,92.971,74.41472001]
[1770217115647,1.87158657,93.076,92.971,74.41472001]
[1770217115843,226.58,93.134,92.971,74.41472001]
[1770217116043,32.93355285,93.12,92.971,74.41472001]
[1770217116241,226.58,93.134,92.971,74.41472001]
[1770217116242,32.93355285,93.1,92.971,74.41472001]
[1770217116443,9.6777,93.132,92.971,74.41472001]
[1770217116642,32.93355285,93.13,92.971,74.41472001]
[1770217117038,1.87071127,93.091,92.971,74.41472001]
[1770217117346,227.52,93.131,92.981,74.44230652]
[1770217117543,32.93355285,93.17,92.923,1.87030911]
[1770217117544,32.93355285,93.17,93.011,74.44230652]
[1770217117849,227.62,93.174,93.011,74.44230652]
[1770217118049,32.93355285,93.17,93.011,74.44230652]
[1770217118245,32.93355285,93.22,93.031,74.09680753]
[1770217118448,32.93355285,93.23,93.026,74.09680753]
[1770217118647,1.86950531,93.158,93.001,74.09680753]
[1770217118946,32.93355285,93.2,93.031,74.09680753]
[1770217119148,1.86955552,93.166,93.031,74.09680753]
[1770217119348,32.93355285,93.21,93.041,74.09680753]
[1770217119645,1.868928,93.186,93.041,74.09680753]
[1770217120245,1.868928,93.186,93.071,74.09680753]
[1770217122048,1.868928,93.186,92.99,6.0]
[1770217122049,1.868928,93.186,93.041,73.90151662]
[1770217122955,1.868928,93.186,93.071,73.80359197]
[1770217125454,32.01,93.238,93.091,73.73020768]
[1770217125652,1.86846139,93.206,93.091,73.73020768]
[1770217126448,1.86826077,93.216,93.121,73.78287207]
[1770217126748,1.86826077,93.216,93.084,73.78287207]
[1770217127049,1.86826077,93.216,93.101,73.78287207]
[1770217127251,32.01,93.221,93.101,73.78287207]
[1770217127650,1.8684965,93.196,93.101,70.28287207]
[1770217127848,32.01,93.273,93.101,70.28287207]
[1770217128049,1.86832095,93.216,93.101,70.28287207]
[1770217128452,32.01,93.23,93.11,21.87271705]
[1770217128652,1.86835105,93.206,93.11,21.87271705]
[1770217128853,32.01,93.225,93.1,21.87271705]
[1770217129247,1.86833098,93.206,93.1,21.87271705]
[1770217129650,1.86833098,93.206,93.071,71.96860481]
[1770217130154,32.01,93.205,93.071,71.96860481]
[1770217130451,32.01,93.205,93.081,71.92059534]
[1770217130645,1.86833098,93.206,93.081,71.92059534]
[1770217131049,1.86833098,93.206,93.111,71.92059534]
[1770217131254,9.6718,93.189,93.111,71.92059534]
[1770217131553,1.86833098,93.206,93.111,71.92059534]
[1770217132454,1.86833098,93.206,93.14,8.78332625]
[1770217132653,9.6694,93.212,93.111,71.92059534]
[1770217132859,9.6694,93.212,93.13,8.78332625]
[1770217133158,9.6694,93.212,93.131,71.92468418]
[1770217135457,9.6709,93.198,93.131,71.92468418]
[1770217136059,9.6693,93.213,93.131,71.92468418]
[1770217136758,9.6709,93.197,93.11,8.78332625]
[1770217136958,1.86807022,93.216,93.13,8.78332625]
[1770217137260,1.86807022,93.216,93.13,80.7287247]
[1770217138160,9.6705,93.201,93.13,80.7287247]
[1770217138350,1.86807022,93.216,93.099,71.89675632]
[1770217138664,1.86807022,93.216,93.01,6.0]
[1770217138665,9.6719,93.188,93.101,71.89675632]
[1770217138954,9.6719,93.188,93.12,8.78332625]
[1770217139159,150.4575,93.185,93.046,71.89675632]
[1770217139352,32.01,93.187,93.091,71.89675632]
[1770217139553,1.86807022,93.216,93.111,71.89675632]
[1770217139758,32.01,93.203,93.111,71.89675632]
[1770217140160,1.86807022,93.216,93.111,71.89675632]
[1770217140464,1.86807022,93.216,92.525,66.06182848]
[1770217140465,32.01,93.189,93.084,72.07527281]
[1770217140957,32.01,93.189,93.084,71.75300663]
[1770217141163,32.01,93.169,93.084,71.75300663]
[1770217141356,32.01,93.178,93.084,71.75300663]
[1770217141762,8.78332625,93.16,92.991,1.86880756]
[1770217142060,32.01,93.129,92.866,185.96]
[1770217142253,8.78332625,93.15,92.962,1.8702086]
[1770217142452,8.78332625,93.15,92.866,185.96]
[1770217142453,32.01,93.119,92.866,185.96]
[1770217142658,32.01,93.119,93.01,8.78332625]
[1770217142964,221.3,93.161,93.05,8.78332625]
[1770217143157,8.78332625,93.15,93.018,71.99397285]
[1770217143455,8.78332625,93.14,93.02,8.78332625]
[1770217143658,32.01,93.139,93.021,71.92214396]
[1770217143863,32.01,93.129,93.021,71.92214396]
[1770217145065,32.01,93.109,92.994,71.97492646]
[1770217145264,150.5352,93.137,92.961,71.97492646]
[1770217145265,32.01,93.107,92.961,71.97492646]
[1770217145454,150.5352,93.137,92.991,71.91766694]
[1770217145659,8.78332625,93.08,92.991,71.91766694]
[1770217146361,8.78332625,93.11,92.991,71.91766694]
[1770217146866,8.78332625,93.1,92.991,71.91766694]
[1770217147266,8.78332625,93.08,92.991,71.91766694]
[1770217147565,150.654,93.063,92.926,71.83661341]
[1770217147760,8.78332625,93.08,92.961,71.83661341]
[1770217147967,8.78332625,93.1,92.981,71.83661341]
[1770217148268,8.78332625,93.12,92.981,71.83661341]
[1770217148567,150.4668,93.179,93.02,8.78332625]
[1770217148768,8.78332625,93.17,93.041,71.78299537]
[1770217148967,150.4463,93.192,93.051,71.78299537]
[1770217148968,8.78332625,93.18,93.051,71.78299537]
[1770217149365,150.4278,93.203,93.091,71.73089946]
[1770217149668,150.4909,93.164,93.039,71.73089946]
[1770217149874,8.78332625,93.16,93.039,71.73089946]
[1770217150069,150.4347,93.199,92.96,8.78332625]
[1770217150070,8.78332625,93.18,93.051,71.73089946]
[1770217150270,150.4752,93.174,93.001,71.69344086]
[1770217150471,150.4752,93.174,93.021,71.69344086]
[1770217150472,150.485,93.168,93.021,71.69344086]
[1770217150772,10.34232183,93.182,93.021,71.69344086]
[1770217151068,32.01,93.198,93.021,71.69344086]
[1770217151269,32.01,93.198,93.051,71.64338183]
[1770217151772,21.90496789,93.15,93.051,71.64338183]
[1770217151971,21.90496789,93.18,93.051,71.64338183]
[1770217152373,20.01512183,93.179,93.051,71.64338183]
[1770217152674,10.34232183,93.178,93.051,71.64338183]
[1770217152866,9.6733,93.174,93.051,71.64338183]
[1770217153065,32.01,93.173,93.051,71.64338183]
[1770217153371,9.49842791,93.171,93.051,71.64338183]
[1770217153773,10.48295704,93.17,93.051,71.64338183]
[1770217154172,12.27667221,93.215,93.051,71.64338183]
[1770217154372,150.3951,93.224,93.081,71.38646369]
[1770217154970,9.55438298,93.189,93.081,71.38646369]
[1770217155271,9.55438298,93.168,93.081,71.38646369]
[1770217155475,10.51643058,93.167,93.081,71.38646369]
[1770217155665,10.51643058,93.166,93.081,71.38646369]
[1770217155869,10.51643058,93.165,93.081,71.38646369]
[1770217156177,10.51643058,93.164,93.081,71.38646369]
[1770217156372,10.51643058,93.163,93.081,71.38646369]
[1770217156568,10.51643058,93.162,93.081,71.38646369]
[1770217156775,9.55438298,93.202,93.101,65.58186343]
[1770217156978,9.55438298,93.228,93.101,65.58186343]
[1770217157172,9.55438298,93.23,93.101,65.58186343]
[1770217157569,9.55438298,93.22,93.101,65.58186343]
[1770217157776,9.6696,93.21,93.101,65.58186343]
[1770217158077,9.55438298,93.203,93.101,65.58186343]
[1770217158277,19.22458298,93.204,93.101,65.58186343]
[1770217158478,9.6702,93.204,93.101,65.58186343]
[1770217158777,9.6704,93.202,93.101,65.58186343]
[1770217158978,9.55438298,93.195,93.101,65.58186343]
[1770217159180,9.55438298,93.19,93.101,65.58186343]
[1770217159379,9.55438298,93.176,93.051,65.38338329]
[1770217159583,9.55438298,93.164,93.051,65.38338329]
[1770217159777,9.55438298,93.162,93.051,65.38338329]
[1770217160079,9.55438298,93.145,93.051,65.38338329]
[1770217160371,9.6772,93.137,93.051,65.38338329]
[1770217160577,9.55438298,93.134,93.051,65.38338329]
[1770217160768,9.55438298,93.13,93.051,65.38338329]
[1770217160970,9.6796,93.114,93.051,65.38338329]
[1770217161173,9.55438298,93.103,93.024,64.79125536]
[1770217161370,9.6837,93.075,92.95,21.90496789]
[1770217161574,150.553,93.126,92.893,214.88]
[1770217161575,9.55438298,93.092,92.98,21.90496789]
[1770217161771,9.55438298,93.114,92.98,21.90496789]
[1770217162081,41.01373386,93.16,92.93,1.87028901]
[1770217162082,9.6786,93.123,93.01,21.90496789]
[1770217162279,9.55438298,93.127,93.01,21.90496789]
[1770217162477,9.676,93.149,93.01,21.90496789]
[1770217162672,9.55438298,93.15,93.01,21.90496789]
[1770217162880,9.55438298,93.142,93.01,21.90496789]
[1770217163276,9.55438298,93.154,93.01,21.90496789]
[1770217163581,9.55438298,93.154,93.011,56.36379041]
[1770217163777,32.01,93.143,93.011,56.36379041]
[1770217163976,9.55438298,93.153,93.011,56.36379041]
[1770217164273,19.343,93.192,93.011,56.36379041]
[1770217164274,9.6788,93.122,93.011,56.36379041]
[1770217164578,32.01,93.144,93.011,56.36379041]
[1770217164778,9.55438298,93.141,93.011,56.36379041]
[1770217165182,9.6788,93.122,93.011,56.36379041]
[1770217165584,9.55438298,93.142,93.011,56.36379041]
[1770217165780,9.68,93.11,93.011,56.36379041]
[1770217165979,9.55438298,93.137,93.011,56.36379041]
[1770217166175,150.5026,93.157,93.011,56.36379041]
[1770217166176,9.55438298,93.133,93.011,56.36379041]
[1770217166378,9.55438298,93.134,93.011,56.36379041]
[1770217166573,9.68,93.11,93.011,56.36379041]
[1770217166979,9.55438298,93.146,93.021,56.58675972]
[1770217167377,9.55438298,93.148,93.021,56.58675972]
[1770217167581,9.55438298,93.149,93.021,56.58675972]
[1770217167784,9.6787,93.123,93.021,56.58675972]
[1770217168185,9.55438298,93.149,93.021,56.58675972]
[1770217168380,9.55438298,93.153,93.021,56.58675972]
[1770217168582,9.55438298,93.149,93.021,56.58675972]
[1770217168883,9.17211842,93.148,93.021,56.58675972]
[1770217169081,9.17211842,93.147,93.021,56.58675972]
[1770217169281,9.17211842,93.146,93.021,56.58675972]
[1770217169583,9.6803,93.107,93.021,56.58675972]
[1770217169786,9.17011276,93.106,93.021,56.58675972]
[1770217169982,9.17011276,93.105,93.021,56.58675972]
[1770217170182,9.6803,93.107,93.021,56.58675972]
[1770217170382,42.95295988,93.335,93.021,56.58675972]
[1770217170383,9.6791,93.119,93.021,56.58675972]
[1770217170683,9.16903527,93.118,93.021,56.58675972]
[1770217170876,9.16903527,93.117,93.021,56.58675972]
[1770217171081,9.16903527,93.151,93.021,56.58675972]
[1770217171279,9.16903527,93.15,93.021,56.58675972]
[1770217171485,9.16903527,93.149,93.021,56.58675972]
[1770217171687,9.16903527,93.148,93.021,56.58675972]
[1770217171888,9.16903527,93.147,93.021,56.58675972]
[1770217172181,9.16903527,93.146,93.021,56.58675972]
[1770217172387,9.16903527,93.178,93.081,56.43600157]
[1770217172692,9.16903527,93.177,93.081,56.43600157]
[1770217172984,9.6743,93.165,93.081,56.43600157]
[1770217173184,9.16903527,93.199,93.081,56.43600157]
[1770217173382,9.16903527,93.198,93.101,56.39049224]
[1770217173584,9.16903527,93.211,93.101,56.39049224]
[1770217173778,9.16903527,93.21,93.101,56.39049224]
[1770217173984,9.16903527,93.209,93.101,56.39049224]
[1770217174183,8.79235317,93.22,93.101,56.39049224]
[1770217174184,8.79235317,93.2,93.101,56.39049224]
[1770217174488,9.16903527,93.199,93.101,56.39049224]
[1770217174692,9.6729,93.178,93.101,56.39049224]
[1770217174887,9.16903527,93.197,93.101,56.39049224]
[1770217175086,9.6727,93.18,93.101,56.39049224]
[1770217175483,9.16903527,93.215,93.111,56.53212399]
[1770217175687,9.6712,93.195,93.111,56.53212399]
[1770217175888,9.16903527,93.215,93.111,56.53212399]
[1770217176088,9.16903527,93.214,93.111,56.53212399]
[1770217176391,9.16903527,93.219,93.111,56.53212399]
[1770217176689,9.6716,93.191,93.111,56.53212399]
[1770217176891,9.16903527,93.224,93.111,56.53212399]
[1770217177090,8.79235317,93.22,93.111,56.53212399]
[1770217177286,9.16903527,93.219,93.111,56.53212399]
[1770217177487,9.16903527,93.218,93.111,56.53212399]
[1770217177788,9.16903527,93.217,93.111,56.53212399]
[1770217177992,8.79235317,93.2,93.111,56.53212399]
[1770217178183,9.16903527,93.199,93.111,56.53212399]
[1770217178387,9.16903527,93.198,93.111,56.53212399]
[1770217178584,9.16903527,93.197,93.111,56.53212399]
[1770217178786,9.16903527,93.196,93.111,56.53212399]
[1770217179081,9.16903527,93.195,93.111,56.53212399]
[1770217179281,9.16903527,93.194,93.111,56.53212399]
[1770217179479,9.16903527,93.193,93.111,56.53212399]
[1770217179689,9.16903527,93.192,93.111,56.53212399]
[1770217179890,9.16903527,93.199,93.111,56.53212399]
[1770217180080,9.16903527,93.219,93.111,56.53212399]
[1770217180283,9.16903527,93.224,93.131,56.19597373]
[1770217180486,9.16903527,93.224,93.107,56.2375467]
[1770217180487,150.42,93.208,93.107,56.2375467]
[1770217180684,8.79235317,93.19,93.107,56.2375467]
[1770217181191,9.16903527,93.189,93.107,56.2375467]
[1770217181391,9.16903527,93.188,93.107,56.2375467]
[1770217181590,18.84103527,93.187,93.107,56.2375467]
[1770217181892,9.16903527,93.186,93.061,56.19831834]
[1770217182096,9.16903527,93.185,93.061,56.19831834]
[1770217182392,9.16903527,93.184,93.061,56.19831834]
[1770217182688,9.16903527,93.196,93.081,56.34320306]
[1770217182891,9.16903527,93.195,93.081,56.34320306]
[1770217183192,9.16903527,93.207,93.081,56.34320306]
[1770217183389,18.83903527,93.206,93.081,56.34320306]
[1770217183593,8.79235317,93.19,93.081,56.34320306]
[1770217183890,9.16903527,93.189,93.081,56.34320306]
[1770217184090,8.79235317,93.17,93.081,56.34320306]
[1770217184290,9.16903527,93.169,93.081,56.34320306]
[1770217184595,9.16903527,93.168,93.081,56.34320306]
[1770217184798,9.16903527,93.196,93.101,56.16206051]
[1770217184990,9.16903527,93.211,93.101,56.16206051]
[1770217185183,9.16903527,93.21,93.101,56.16206051]
[1770217185387,9.16903527,93.224,93.101,56.16206051]
[1770217185590,9.16903527,93.223,93.101,56.16206051]
[1770217185789,8.79235317,93.19,93.061,56.1256659]
[1770217185995,8.79235317,93.15,93.061,56.1256659]
[1770217186188,8.79235317,93.13,93.061,56.1256659]
[1770217186493,8.79235317,93.13,92.96,8.79235317]
[1770217186494,32.01,93.123,93.011,56.53092679]
[1770217186693,32.01,93.121,93.011,56.53092679]
[1770217186994,8.98344665,93.146,93.031,56.53092679]
[1770217187195,8.98344665,93.145,93.031,56.53092679]
[1770217187392,8.98344665,93.144,93.031,56.53092679]
[1770217187590,8.98344665,93.143,93.031,56.53092679]
[1770217187795,8.98344665,93.142,93.031,56.53092679]
[1770217188098,32.01,93.14,93.031,56.53092679]
[1770217188292,32.01,93.138,93.031,56.53092679]
[1770217188491,32.01,93.136,93.031,56.53092679]
[1770217188694,41.6875,93.134,93.031,56.53092679]
[1770217188896,32.01,93.132,93.031,56.53092679]
[1770217189092,32.01,93.119,93.031,56.53092679]
[1770217189293,8.80313109,93.12,93.031,56.53092679]
[1770217189294,32.01,93.117,93.031,56.53092679]
[1770217189495,32.01,93.115,93.031,56.53092679]
[1770217189696,32.01,93.099,92.981,56.0049937]
[1770217190000,32.01,93.097,92.981,56.0049937]
[1770217190194,32.01,93.079,92.981,56.0049937]
[1770217190397,8.98344665,93.095,93.001,55.88567663]
[1770217190598,8.98344665,93.117,93.021,55.88567663]
[1770217190793,8.98344665,93.116,93.021,55.88567663]
[1770217190991,8.98344665,93.115,93.021,55.88567663]
[1770217191192,8.98344665,93.129,93.021,55.88567663]
[1770217191391,9.6782,93.127,93.021,55.88567663]
[1770217191592,8.98344665,93.126,93.021,55.88567663]
[1770217191795,8.98344665,93.125,93.021,55.88567663]
[1770217192000,8.98344665,93.124,93.021,55.88567663]
[1770217192195,8.98344665,93.123,93.021,55.88567663]
[1770217192399,8.98344665,93.122,93.021,55.88567663]
[1770217192593,150.4758,93.174,92.96,8.80313109]
[1770217192594,8.98344665,93.139,93.041,55.79116145]
[1770217192793,8.98344665,93.138,93.041,55.79116145]
[1770217193091,8.98344665,93.137,93.041,55.79116145]
[1770217193291,8.98344665,93.136,93.041,55.79116145]
[1770217193488,8.98344665,93.135,93.041,55.79116145]
[1770217193689,8.98344665,93.134,93.051,55.72371818]
[1770217193894,8.98344665,93.133,93.051,55.72371818]
[1770217194099,8.98344665,93.159,93.051,55.72371818]
[1770217194397,8.80313109,93.14,93.051,55.72371818]
[1770217194599,8.98344665,93.139,93.051,55.72371818]
[1770217194797,8.98344665,93.138,93.051,55.72371818]
[1770217195098,8.98344665,93.137,93.051,55.72371818]
[1770217195288,8.98344665,93.136,93.051,55.72371818]
[1770217195496,8.98344665,93.135,93.051,55.72371818]
[1770217195695,8.98344665,93.134,93.051,55.72371818]
[1770217195897,8.98344665,93.133,93.051,55.72371818]
[1770217196097,8.98344665,93.132,93.051,55.72371818]
[1770217196297,8.80313109,93.12,93.028,55.72072339]
[1770217196493,8.98344665,93.119,93.028,55.72072339]
[1770217196692,9.6741,93.166,93.028,55.72072339]
[1770217196898,32.01,93.162,93.041,31.13462408]
[1770217197101,8.80313109,93.17,93.051,31.13462408]
[1770217197399,150.4867,93.167,93.051,31.13462408]
[1770217197595,8.80313109,93.15,93.051,31.13462408]
[1770217197795,9.676,93.149,93.051,31.13462408]
[1770217197991,8.80313109,93.13,93.051,31.13462408]
[1770217198195,8.80313109,93.16,93.051,31.13462408]
[1770217198791,9.675,93.158,93.051,31.13462408]
[1770217199694,8.80313109,93.14,93.051,31.13462408]
[1770217199894,9.6761,93.148,93.051,31.13462408]
[1770217200299,8.80313109,93.09,92.961,31.08340675]
[1770217200600,8.80313109,93.13,93.011,31.08340675]
[1770217200801,9.69202724,93.145,93.031,31.08340675]
[1770217200994,32.01,93.149,93.031,31.08340675]
[1770217201302,9.69202724,93.148,93.031,31.08340675]
[1770217201599,8.80313109,93.14,93.031,31.08340675]
[1770217201903,8.80313109,93.1,93.007,31.05530569]
[1770217202296,9.69202724,93.12,92.961,31.23940208]
[1770217202498,150.4431,93.194,92.961,31.23940208]
[1770217202499,9.69202724,93.089,92.961,31.23940208]
[1770217202799,9.6796,93.114,93.001,31.23940208]
[1770217203001,12.93601787,93.149,92.96,8.80313109]
[1770217203002,32.01,93.147,93.021,31.23940208]
[1770217203202,9.69202724,93.182,93.08,8.80313109]
[1770217203404,19.42418565,93.228,92.96,40.81313109]
[1770217203405,9.69202724,93.232,93.12,8.80313109]
[1770217203698,28.24324641,93.28,93.04,8.80313109]
[1770217203699,9.69202724,93.249,93.09,8.80313109]
[1770217203902,8.80313109,93.19,92.96,8.80313109]
[1770217204100,32.01,93.209,93.04,8.80313109]
[1770217204294,8.80313109,93.19,93.07,8.80313109]
[1770217204495,9.6698,93.209,93.09,8.80313109]
[1770217204698,8.80313109,93.21,93.09,8.80313109]
[1770217204894,19.44011532,93.276,92.942,85.78]
[1770217204895,8.80313109,93.17,93.05,8.80313109]
[1770217205100,8.80313109,93.13,93.0,8.80313109]
[1770217205303,8.80313109,93.15,93.021,28.97424233]
[1770217205510,8.80313109,93.15,93.041,28.97424233]
[1770217206403,8.80313109,93.13,93.041,28.97424233]
[1770217206996,9.7191779,93.146,93.041,28.97424233]
[1770217207200,8.80313109,93.15,93.041,28.97424233]
[1770217207399,9.7191779,93.154,93.016,30.09547325]
[1770217207706,8.80313109,93.16,93.031,30.09547325]
[1770217207905,160.1783,93.157,93.031,30.09547325]
[1770217208104,9.6751,93.157,93.031,30.09547325]
[1770217208801,12.93601787,93.203,93.031,30.09547325]
[1770217208802,8.80313109,93.14,93.031,30.09547325]
[1770217209003,9.7191779,93.169,93.031,30.09547325]
[1770217209004,8.5376176,93.139,93.031,30.09547325]
[1770217209199,8.5376176,93.139,92.822,742.0]
[1770217209200,8.80313109,93.09,92.96,8.80313109]
[1770217209401,8.80313109,93.09,92.981,31.28987226]
[1770217209596,8.80313109,93.08,92.981,31.28987226]
[1770217209798,9.6823,93.088,92.981,31.28987226]
[1770217210000,8.80313109,93.09,92.981,31.28987226]
[1770217210199,150.6351,93.075,92.981,31.28987226]
[1770217210503,32.92988999,93.06,92.921,31.52220029]
[1770217210709,9.6873,93.04,92.921,31.52220029]
[1770217211009,150.667,93.055,92.921,31.52220029]
[1770217211199,9.6858,93.055,92.921,31.52220029]
[1770217211399,8.5376176,93.128,92.981,31.52504438]
[1770217211606,9.7191779,93.19,93.04,32.92988999]
[1770217211806,9.674,93.168,93.041,31.52504438]
[1770217211998,150.4589,93.184,93.041,31.52504438]
[1770217212307,12.93601787,93.232,92.966,214.98]
[1770217212308,8.52360722,93.219,93.071,32.23919112]
[1770217212604,8.52360722,93.246,93.101,32.23919112]
[1770217212805,32.92988999,93.25,93.101,32.23919112]
[1770217212806,9.6691,93.215,93.101,32.23919112]
[1770217213010,150.4235,93.206,93.101,32.23919112]
[1770217213206,1.86818054,93.225,93.075,32.23919112]
[1770217213506,8.50120397,93.224,93.075,32.23919112]
[1770217213706,150.443,93.194,93.075,32.23919112]
[1770217213911,9.6713,93.194,93.075,32.23919112]
[1770217214106,150.475,93.174,93.075,32.23919112]
[1770217214306,150.4675,93.179,93.075,32.23919112]
[1770217214604,8.50120397,93.202,93.075,32.23919112]
[1770217214801,8.50120397,93.201,93.075,32.23919112]
[1770217215008,9.67,93.206,93.075,32.23919112]
[1770217215308,150.4366,93.198,93.075,32.23919112]
[1770217215505,9.6733,93.174,93.075,32.23919112]
[1770217215808,32.92988999,93.2,93.075,32.23919112]
[1770217215809,150.4814,93.17,93.075,32.23919112]
[1770217216006,150.4617,93.182,93.075,32.23919112]
[1770217216208,150.4972,93.16,93.045,31.62897552]
[1770217216409,150.5455,93.13,93.045,31.62897552]
[1770217216614,150.5181,93.147,93.045,31.62897552]
[1770217216805,32.92988999,93.15,93.045,31.62897552]
[1770217217011,150.5236,93.144,93.045,31.62897552]
[1770217217213,160.2213,93.132,92.981,31.86697796]
[1770217217508,9.6777,93.132,92.981,31.86697796]
[1770217217909,150.553,93.126,92.981,31.86697796]
[1770217218113,150.5547,93.125,92.981,31.86697796]
[1770217218311,150.5373,93.136,92.981,31.86697796]
[1770217218513,9.6784,93.125,92.981,31.86697796]
[1770217218814,150.5747,93.112,92.981,31.86697796]
[1770217219017,150.649,93.066,92.955,31.89380905]
[1770217219214,150.6659,93.056,92.955,31.89380905]
[1770217219412,150.6284,93.079,92.955,31.89380905]
[1770217219616,156.92988999,93.09,92.955,31.89380905]
[1770217219821,150.6747,93.051,92.955,31.89380905]
[1770217220124,32.92988999,93.06,92.955,31.89380905]
[1770217220326,150.6858,93.044,92.91,31.89462186]
[1770217220518,150.6801,93.047,92.91,31.89462186]
[1770217220719,9.6878,93.035,92.91,31.89462186]
[1770217221524,9.6846,93.066,92.91,31.89462186]
[1770217221733,32.92988999,93.09,92.931,32.11035082]
[1770217222029,9.6827,93.085,92.931,32.11035082]
[1770217222530,150.5912,93.102,92.961,32.32066727]
[1770217222730,150.5745,93.113,92.961,32.32066727]
[1770217222923,150.6187,93.085,92.961,32.32066727]
[1770217223128,32.92988999,93.12,92.961,32.32066727]
[1770217223431,9.679,93.119,92.991,32.31934231]
[1770217223824,150.5116,93.151,92.991,32.31934231]
[1770217224027,150.4947,93.162,93.011,32.31772529]
[1770217224225,150.5413,93.133,93.011,32.31772529]
[1770217224428,150.5565,93.124,93.011,32.31772529]
[1770217224627,9.6788,93.122,93.011,32.31772529]
[1770217225028,160.2377,93.122,93.011,32.31772529]
[1770217225428,150.584,93.107,93.011,32.31772529]
[1770217225629,150.5653,93.118,93.011,32.31772529]
[1770217225830,9.6753,93.156,93.011,32.31772529]
[1770217226028,9.6753,93.156,93.021,32.53047978]
[1770217226427,32.92988999,93.21,93.051,32.43339593]
[1770217226639,150.3851,93.23,93.081,32.43339593]
[1770217226833,150.4085,93.215,93.081,32.43339593]
[1770217227034,9.6691,93.215,93.081,32.43339593]
[1770217227529,9.6725,93.182,93.081,32.43339593]
[1770217227730,150.4731,93.175,92.984,32.43157349]
[1770217227938,32.92988999,93.19,92.983,121.34]
[1770217227939,150.4691,93.178,93.041,32.43157349]
[1770217228236,9.6738,93.17,93.041,32.43157349]
[1770217228736,9.6745,93.163,93.041,32.43157349]
[1770217228931,32.92988999,93.17,93.041,32.43157349]
[1770217229136,150.5038,93.156,93.041,32.43157349]
[1770217229336,9.6752,93.156,93.041,32.43157349]
[1770217229534,32.92988999,93.17,93.041,32.43157349]
[1770217229836,150.4827,93.169,93.041,32.43157349]
[1770217230033,9.6742,93.166,93.041,32.43157349]
[1770217230833,8.48296486,93.185,93.041,32.43157349]
[1770217231029,150.4553,93.186,93.041,32.43157349]
[1770217231228,12.93174185,93.23,92.95,32.92988999]
[1770217231229,32.92988999,93.12,92.984,31.79120414]
[1770217231438,32.92988999,93.12,92.8,46.40065968]
[1770217231439,32.92988999,93.06,92.921,31.79242871]
[1770217231644,8.48296486,93.059,92.921,31.79242871]
[1770217231940,9.6848,93.064,92.921,31.79242871]
[1770217232541,9.686,93.052,92.921,31.79242871]
[1770217232737,150.6786,93.048,92.921,31.79242871]
[1770217232938,32.92988999,93.05,92.921,31.79242871]
[1770217233534,150.6446,93.069,92.921,31.79242871]
[1770217234139,32.92988999,93.08,92.921,31.79242871]
[1770217234140,150.6809,93.047,92.921,31.79242871]
[1770217234333,150.6845,93.045,92.921,31.79242871]
[1770217234534,9.6908,93.006,92.893,32.28052787]
[1770217234838,150.6705,93.053,92.893,32.28052787]
[1770217235045,160.4119,93.021,92.893,32.28052787]
[1770217235243,32.92988999,93.03,92.893,32.28052787]
[1770217235244,150.7518,93.003,92.893,32.28052787]
[1770217235542,160.4529,92.997,92.893,32.28052787]
[1770217235739,9.6918,92.997,92.893,32.28052787]
[1770217235939,0.63319569,92.933,92.77,32.92988999]
[1770217236138,0.63319569,92.93,92.74,85.8]
[1770217236340,0.50873488,92.921,92.77,32.92988999]
[1770217236542,0.50873488,92.954,92.8,32.92988999]
[1770217236742,150.8415,92.948,92.8,32.92988999]
[1770217236937,150.8747,92.927,92.8,32.92988999]
[1770217237140,0.50873488,92.926,92.8,32.92988999]
[1770217237344,0.29364541,92.916,92.77,32.92988999]
[1770217237644,0.29364541,92.912,92.77,32.92988999]
[1770217237840,0.29364541,92.89,92.79,24.12174003]
[1770217238039,0.29364541,92.888,92.79,24.12174003]
[1770217238238,150.9395,92.887,92.79,24.12174003]
[1770217238437,150.9395,92.887,92.71,1.413e-05]
[1770217238438,151.0644,92.811,92.71,1.413e-05]
[1770217238635,12.83086258,92.778,92.56,32.92988999]
[1770217238837,151.1088,92.783,92.58,6.0]
[1770217239036,12.83086258,92.755,92.62,32.92988999]
[1770217239239,151.119,92.777,92.574,85.84]